bitfinex/quotes_BTCUSD_20250723
["timestamp","ask_amount","ask_price","bid_price","bid_amount"]
[1753280952918,0.24589015,118150.0,118140.0,0.32205966]
[1753280953155,0.24589015,118150.0,118140.0,0.18736695]
[1753280953405,0.30240537,118150.0,118140.0,0.00114729]
[1753280953630,0.30240537,118150.0,118140.0,0.17790249]
[1753280953844,0.70240537,118150.0,118140.0,0.17790249]
[1753280954074,0.70765867,118150.0,118140.0,0.17790249]
[1753280954312,0.70765867,118150.0,118140.0,0.00014729]
[1753280954743,0.84345867,118150.0,118140.0,0.00014729]
[1753280954953,0.44345867,118150.0,118140.0,0.00014729]
[1753280955634,0.80843199,118150.0,118140.0,0.00014729]
[1753280955860,0.44373867,118150.0,118140.0,0.00014729]
[1753280957611,0.25114345,118150.0,118140.0,0.00014729]
[1753280957822,0.38710345,118150.0,118140.0,0.00014729]
[1753280959032,0.25114345,118150.0,118140.0,0.00014729]
[1753280959239,0.38718345,118150.0,118140.0,0.00014729]
[1753280960091,0.38718345,118150.0,118140.0,0.00114729]
[1753280960303,0.47166075,118150.0,118140.0,0.00114729]
[1753280960517,0.47166075,118150.0,118140.0,0.00014729]
[1753280962317,0.98635407,118150.0,118140.0,0.00014729]
[1753280962767,0.62166075,118150.0,118140.0,0.00014729]
[1753280963759,0.48562075,118150.0,118140.0,0.00014729]
[1753280963998,0.53718345,118150.0,118140.0,0.00014729]
[1753280964480,0.53193015,118150.0,118140.0,0.00014729]
[1753280965159,0.39589015,118150.0,118140.0,0.17790249]
[1753280965402,0.54873713,118150.0,118140.0,0.19483134]
[1753280965650,0.54873713,118150.0,118140.0,0.20329565]
[1753280965855,0.54027375,118150.0,118140.0,0.19483134]
[1753280966111,0.54019375,118150.0,118140.0,0.19483134]
[1753280966378,0.40435375,118150.0,118140.0,0.19483126]
[1753280966649,0.23507698,118150.0,118140.0,0.19483126]
[1753280966892,0.3304002,118150.0,118140.0,0.57645285]
[1753280967123,0.4686866,118150.0,118140.0,0.57849285]
[1753280967637,0.4771507,118150.0,118140.0,0.57849299]
[1753280967866,0.4771507,118150.0,118140.0,0.21379924]
[1753280968081,0.4771507,118150.0,118140.0,0.21379881]
[1753280968303,0.64642704,118150.0,118140.0,0.19687068]
[1753280968547,0.70106366,118150.0,118140.0,0.17994249]
[1753280968781,0.68413668,118150.0,118140.0,0.00014729]
[1753280969019,0.68706668,118150.0,118140.0,0.00014729]
[1753280969952,0.68706668,118150.0,118140.0,0.16943796]
[1753280970132,0.68706668,118150.0,118140.0,0.17790249]
[1753280971031,0.55094668,118150.0,118140.0,0.17790249]
[1753280971256,0.55094668,118150.0,118140.0,0.00014729]
[1753280971514,1.12350087,118150.0,118140.0,0.00014729]
[1753280972000,0.75880755,118150.0,118140.0,0.00014729]
[1753280972668,0.68678668,118150.0,118140.0,0.00014729]
[1753280972889,0.55194668,118150.0,118140.0,0.17790249]
[1753280973111,0.68854668,118150.0,118140.0,0.18636695]
[1753280973337,0.68854668,118150.0,118140.0,0.00014729]
[1753280973781,0.68954668,118150.0,118140.0,0.00014729]
[1753280974001,0.69034668,118150.0,118140.0,0.17790242]
[1753280975531,0.38367013,118150.0,118140.0,0.17790242]
[1753280975751,0.18456711,118150.0,118140.0,0.19687069]
[1753280975976,0.0071766,118150.0,118140.0,0.59509401]
[1753280976203,0.002,118150.0,118140.0,0.84883131]
[1753280977069,0.002,118150.0,118140.0,0.71167131]
[1753280977300,0.19872692,118150.0,118140.0,0.18636673]
[1753280977567,0.2678869,118150.0,118140.0,0.1948309]
[1753280977780,0.25942359,118150.0,118140.0,0.3328709]
[1753280977997,0.25942359,118150.0,118140.0,0.341335]
[1753280978266,0.25942359,118150.0,118140.0,0.32440673]
[1753280978464,0.19872742,118150.0,118140.0,0.32440673]
[1753280978675,0.02945108,118150.0,118140.0,0.341335]
[1753280978894,0.02363178,118150.0,118140.0,0.343375]
[1753280979155,0.02363178,118150.0,118140.0,0.70806832]
[1753280979352,0.00464494,118150.0,118140.0,0.71099832]
[1753280979563,0.01046317,118150.0,118140.0,0.74099832]
[1753280980013,0.01892641,118150.0,118140.0,0.238265]
[1753280980234,0.03849847,118150.0,118140.0,0.57295832]
[1753280980443,0.04696221,118150.0,118140.0,0.57295832]
[1753280980655,0.0300348,118150.0,118140.0,0.57295832]
[1753280980866,0.01892641,118150.0,118140.0,0.60535832]
[1753280981076,0.03585317,118150.0,118140.0,0.60535832]
[1753280981301,0.04431684,118150.0,118140.0,0.60535832]
[1753280981523,0.04431684,118150.0,118140.0,0.57295832]
[1753280981967,0.04696235,118150.0,118140.0,0.57295832]
[1753280982358,0.21623926,118150.0,118140.0,0.57295846]
[1753280982630,0.21359432,118150.0,118140.0,0.58142256]
[1753280982841,0.19872756,118150.0,118140.0,0.54756574]
[1753280983056,0.19872756,118150.0,118140.0,0.5644943]
[1753280983268,0.19026389,118150.0,118140.0,0.56449444]
[1753280983483,0.18180015,118150.0,118140.0,0.56449444]
[1753280983696,0.25773258,118150.0,118140.0,0.57295868]
[1753280983938,0.18180015,118150.0,118140.0,0.57295868]
[1753280984150,0.18180015,118150.0,118140.0,0.20826536]
[1753280984333,0.18180015,118150.0,118140.0,0.21672953]
[1753280984550,0.18180015,118150.0,118140.0,0.20826536]
[1753280984996,0.19026375,118150.0,118140.0,0.21672946]
[1753280985442,0.002,118150.0,118140.0,0.21672903]
[1753280985658,0.01310825,118150.0,118140.0,0.21672903]
[1753280985894,0.01310825,118150.0,118140.0,0.61342235]
[1753280986101,0.02157142,118150.0,118140.0,0.61342235]
[1753280986318,0.01046317,118150.0,118140.0,0.61342235]
[1753280986746,0.02157163,118150.0,118140.0,0.61342235]
[1753280986961,0.02157156,118150.0,118140.0,0.61342235]
[1753280987176,0.02157156,118150.0,118140.0,0.64362235]
[1753280987177,0.01310818,118150.0,118140.0,0.64362235]
[1753280987391,0.01046324,118150.0,118140.0,0.64362235]
[1753280987859,0.01892662,118150.0,118140.0,0.64362235]
[1753280988280,0.01046324,118150.0,118140.0,0.64362235]
[1753280988509,0.01046324,118150.0,118140.0,0.27892903]
[1753280988731,0.2077751,118150.0,118140.0,0.58142235]
[1753280988950,0.20513016,118150.0,118140.0,0.55602998]
[1753280989209,0.27019016,118150.0,118140.0,0.00014729]
[1753280989432,0.98140734,118150.0,118140.0,0.00014729]
[1753280990895,0.61671402,118150.0,118140.0,0.00014729]
[1753280991868,0.98140734,118150.0,118140.0,0.00014729]
[1753280993357,0.40326361,118150.0,118140.0,0.16943796]
[1753280993584,0.52106361,118150.0,118140.0,0.00218729]
[1753280993803,0.51260008,118150.0,118140.0,0.00218729]
[1753280994023,0.51260008,118150.0,118140.0,0.00014729]
[1753280994450,0.44947284,118150.0,118140.0,0.00014729]
[1753280994633,0.17739036,118150.0,118140.0,0.59549401]
[1753280994879,0.17739029,118150.0,118140.0,0.59549401]
[1753280995072,0.17739029,118150.0,118140.0,0.23080069]
[1753280995345,0.552,118150.0,118140.0,0.59549401]
[1753280995858,0.152,118150.0,118140.0,0.71137131]
[1753280996116,0.20690696,118150.0,118140.0,0.34667799]
[1753280996412,0.77553836,118150.0,118140.0,0.26734972]
[1753280996696,0.77553836,118150.0,118140.0,0.28134806]
[1753280997194,0.7840021,118150.0,118140.0,0.28981209]
[1753280997684,0.79246591,118150.0,118140.0,0.28981209]
[1753280997693,0.79246591,118150.0,118140.0,0.19687076]
[1753280997956,0.81500267,118150.0,118140.0,0.19687076]
[1753280998187,0.81500267,118150.0,118140.0,0.18840666]
[1753280998436,0.41500267,118150.0,118140.0,0.18840666]
[1753280998914,0.41500267,118150.0,118140.0,0.19687083]
[1753280999113,0.40653922,118150.0,118140.0,0.18840666]
[1753280999322,0.38961181,118150.0,118140.0,0.17994242]
[1753280999708,0.36274015,118150.0,118140.0,0.17994242]
[1753280999925,0.35427634,118150.0,118140.0,0.00218729]
[1753281000138,0.38792634,118150.0,118140.0,0.00014729]
[1753281000366,0.53792634,118150.0,118140.0,0.00014729]
[1753281000569,1.39261966,118150.0,118140.0,0.00014729]
[1753281000794,1.47709696,118150.0,118140.0,0.00014729]
[1753281001464,1.11240364,118150.0,118140.0,0.00014729]
[1753281001675,1.39261966,118150.0,118140.0,0.00014729]
[1753281002759,0.88344015,118150.0,118140.0,0.16943796]
[1753281002970,0.67174015,118150.0,118140.0,0.1914668]
[1753281003241,0.67174015,118150.0,118140.0,0.19993104]
[1753281003455,0.1773905,118150.0,118140.0,0.61325249]
[1753281003678,0.1858536,118150.0,118140.0,0.61325249]
[1753281003887,0.17739,118150.0,118140.0,0.61325249]
[1753281004116,0.19431727,118150.0,118140.0,0.61325249]
[1753281004335,0.002,118150.0,118140.0,0.72922979]
[1753281005289,0.002,118150.0,118140.0,0.73815049]
[1753281006396,0.001,118150.0,118140.0,0.73815049]
[1753281006796,0.001,118150.0,118140.0,0.38298549]
[1753281007022,0.001,118150.0,118140.0,0.73915049]
[1753281007797,0.01379179,118170.0,118160.0,0.19465043]
[1753281007798,0.02225367,118170.0,118160.0,0.19465043]
[1753281008003,0.0222536,118170.0,118160.0,0.28112773]
[1753281008211,0.03917764,118170.0,118160.0,0.28422773]
[1753281008860,0.01379179,118170.0,118160.0,0.28422773]
[1753281009088,0.00633005,118170.0,118160.0,0.28422773]
[1753281009266,0.001,118170.0,118160.0,0.28422773]
[1753281009705,0.002,118170.0,118160.0,0.28422773]
[1753281011270,0.01576086,118170.0,118160.0,0.28422773]
[1753281011503,0.00729912,118170.0,118160.0,0.28422773]
[1753281011953,0.01576086,118170.0,118160.0,0.28422773]
[1753281012209,0.00729912,118170.0,118160.0,0.28422773]
[1753281012434,0.015761,118170.0,118160.0,0.28422773]
[1753281012649,0.01576093,118170.0,118160.0,0.28422773]
[1753281012866,0.02422288,118170.0,118160.0,0.28422773]
[1753281013087,0.02422288,118170.0,118160.0,0.26220233]
[1753281013088,0.29222926,118170.0,118160.0,0.26220233]
[1753281013312,0.15273149,118170.0,118160.0,0.18618784]
[1753281013558,0.25068932,118170.0,118160.0,0.17772503]
[1753281013777,0.22817078,118170.0,118160.0,0.17972503]
[1753281013999,0.22817078,118170.0,118160.0,0.19665058]
[1753281014000,0.25355756,118170.0,118160.0,0.19665058]
[1753281014227,0.25355756,118170.0,118160.0,0.20511325]
[1753281014438,0.24509561,118170.0,118160.0,0.20511325]
[1753281015280,0.04314792,118170.0,118160.0,0.20511325]
[1753281015497,0.04314792,118170.0,118160.0,0.20821325]
[1753281015718,0.02622323,118170.0,118160.0,0.21667584]
[1753281015931,0.02422323,118170.0,118160.0,0.21667584]
[1753281016174,0.01046181,118170.0,118160.0,0.36515314]
[1753281016582,0.01892376,118170.0,118160.0,0.36515314]
[1753281016777,0.02738585,118170.0,118160.0,0.36515314]
[1753281017218,0.002,118170.0,118160.0,0.36515314]
[1753281017360,0.01892355,118170.0,118160.0,0.36515314]
[1753281017763,0.01046188,118170.0,118160.0,0.36515314]
[1753281018406,0.01046181,118170.0,118160.0,0.36515314]
[1753281018859,0.002,118170.0,118160.0,0.36515314]
[1753281019066,0.01046181,118170.0,118160.0,0.36515314]
[1753281019938,0.01892376,118170.0,118160.0,0.36515314]
[1753281020140,0.01046181,118170.0,118160.0,0.36515314]
[1753281020387,0.01892376,118170.0,118160.0,0.35669055]
[1753281020610,0.24112849,118170.0,118160.0,0.0895773]
[1753281020822,0.18618799,118160.0,118150.0,0.16927395]
[1753281021034,0.18620389,118150.0,118140.0,0.18636688]
[1753281021248,0.18820368,118150.0,118140.0,0.27930849]
[1753281021461,0.19666749,118150.0,118140.0,0.2962369]
[1753281021662,0.20513102,118150.0,118140.0,0.29823647]
[1753281022294,0.01892713,118150.0,118140.0,0.29823611]
[1753281022510,0.03003574,118150.0,118140.0,0.29823611]
[1753281022724,0.03849948,118150.0,118140.0,0.30133611]
[1753281023144,0.03003574,118150.0,118140.0,0.30233611]
[1753281023359,0.01892676,118150.0,118140.0,0.30233611]
[1753281023557,0.02739036,118150.0,118140.0,0.30233611]
[1753281024000,0.199312,118150.0,118140.0,0.27694425]
[1753281024235,0.23655883,118150.0,118140.0,0.00114729]
[1753281024448,0.27280883,118150.0,118140.0,0.00114729]
[1753281025094,0.42280883,118150.0,118140.0,0.00114729]
[1753281025737,0.41434523,118150.0,118140.0,0.00114729]
[1753281025955,0.39689001,118150.0,118140.0,0.17043796]
[1753281026166,0.36359001,118150.0,118140.0,0.1873668]
[1753281026371,0.36359001,118150.0,118140.0,0.19583104]
[1753281026794,0.36359001,118150.0,118140.0,0.18736695]
[1753281026998,0.38822634,118150.0,118140.0,0.17890249]
[1753281027204,0.38822634,118150.0,118140.0,0.18736695]
[1753281027439,0.38822634,118150.0,118140.0,0.19583134]
[1753281027686,0.38822634,118150.0,118140.0,0.20329565]
[1753281028128,0.38922634,118150.0,118140.0,0.20329565]
[1753281028561,0.39022634,118150.0,118140.0,0.20329565]
[1753281028823,0.39022634,118150.0,118140.0,0.18636695]
[1753281029033,0.39022634,118150.0,118140.0,0.20329536]
[1753281029247,0.39869001,118150.0,118140.0,0.20329536]
[1753281029454,0.40715375,118150.0,118140.0,0.21175946]
[1753281029668,0.4156172,118150.0,118140.0,0.21175946]
[1753281029880,0.4156172,118150.0,118140.0,0.19483119]
[1753281030304,0.39869008,118150.0,118140.0,0.18636695]
[1753281030502,0.46371426,118150.0,118140.0,0.19483134]
[1753281030790,0.39022634,118150.0,118140.0,0.16943796]
[1753281031046,0.39022634,118150.0,118140.0,0.17790249]
[1753281031227,0.39022634,118150.0,118140.0,0.18636695]
[1753281031426,0.39022634,118150.0,118140.0,0.19483134]
[1753281031577,0.39022634,118150.0,118140.0,0.18636695]
[1753281031780,0.44741246,118150.0,118140.0,0.00014729]
[1753281032000,0.95357746,118150.0,118140.0,0.00014729]
[1753281032206,0.59741246,118150.0,118140.0,0.00014729]
[1753281034129,0.54022634,118150.0,118140.0,0.00014729]
[1753281035343,1.13086864,118150.0,118140.0,0.00014729]
[1753281035553,1.9121102,118150.0,118140.0,0.00014729]
[1753281035991,1.13215266,118150.0,118140.0,0.00014729]
[1753281036210,1.48831766,118150.0,118140.0,0.00014729]
[1753281036413,1.57279496,118150.0,118140.0,0.00014729]
[1753281036831,1.57179496,118150.0,118140.0,0.00014729]
[1753281037167,1.57279496,118150.0,118140.0,0.00014729]
[1753281037383,1.57379496,118150.0,118140.0,0.00014729]
[1753281037804,1.57579496,118150.0,118140.0,0.00014729]
[1753281042891,1.98195996,118150.0,118140.0,0.00014729]
[1753281043114,1.98195996,118150.0,118140.0,1e-08]
[1753281043326,2.00740296,118150.0,118140.0,1e-08]
[1753281043765,1.57579496,118150.0,118140.0,1e-08]
[1753281044009,1.62379496,118150.0,118140.0,1e-08]
[1753281044229,1.26762996,118150.0,118140.0,1e-08]
[1753281044414,1.62579496,118150.0,118140.0,1e-08]
[1753281044882,1.98195996,118150.0,118140.0,1e-08]
[1753281045108,1.99776793,118150.0,118140.0,1e-08]
[1753281045979,2.04776793,118150.0,118140.0,1e-08]
[1753281046198,0.33629807,118090.0,118080.0,0.00302]
[1753281046416,0.40386395,118090.0,118080.0,0.00497]
[1753281046630,0.40386395,118090.0,118080.0,0.18281552]
[1753281047081,0.40386395,118090.0,118080.0,0.00497]
[1753281047082,0.38692823,118090.0,118080.0,0.00497]
[1753281047301,0.39214198,118090.0,118080.0,0.17434669]
[1753281047522,0.39226645,118090.0,118080.0,0.18281552]
[1753281047723,0.3870527,118090.0,118080.0,0.18281552]
[1753281047966,0.3870527,118090.0,118080.0,0.00797]
[1753281048186,0.3870527,118090.0,118080.0,0.17734669]
[1753281048397,0.3870527,118090.0,118080.0,0.18581545]
[1753281048602,0.3870527,118090.0,118080.0,0.19428414]
[1753281048802,0.32795479,118090.0,118080.0,0.20275261]
[1753281049034,0.35335869,118090.0,118080.0,0.21122101]
[1753281049247,0.34489094,118090.0,118080.0,0.20375268]
[1753281049675,0.34489094,118090.0,118080.0,0.18681545]
[1753281049676,0.32795493,118090.0,118080.0,0.18681545]
[1753281049888,0.32795493,118090.0,118080.0,0.19528406]
[1753281050109,0.40820489,118090.0,118080.0,0.2037526]
[1753281050564,0.40820489,118090.0,118080.0,0.19528406]
[1753281050746,0.40820489,118090.0,118080.0,0.18681552]
[1753281050997,0.40820489,118090.0,118080.0,0.20375297]
[1753281051427,0.40820489,118090.0,118080.0,0.21222158]
[1753281052068,0.40820489,118090.0,118080.0,0.17834669]
[1753281052281,0.40820489,118090.0,118080.0,0.00897]
[1753281052497,0.40173678,118090.0,118080.0,0.00897]
[1753281052709,0.40173678,118090.0,118080.0,0.00595]
[1753281052917,0.40173678,118090.0,118080.0,0.004]
[1753281053131,0.17784538,118080.0,118070.0,0.21207944]
[1753281053279,0.2388036,118080.0,118070.0,0.22249884]
[1753281053906,0.2408036,118080.0,118070.0,0.00195]
[1753281054338,0.2408036,118080.0,118070.0,0.00295]
[1753281054565,0.2408036,118080.0,118070.0,0.00695]
[1753281054766,0.2408036,118080.0,118070.0,0.00195]
[1753281056337,0.2408036,118080.0,118070.0,0.00495]
[1753281056490,0.2408036,118080.0,118070.0,0.003]
[1753281057316,0.4208036,118080.0,118070.0,0.003]
[1753281057877,0.3908036,118080.0,118070.0,0.003]
[1753281058104,0.4214036,118080.0,118070.0,0.003]
[1753281059159,0.4214036,118080.0,118070.0,0.01146955]
[1753281059368,0.22989538,118080.0,118070.0,0.20626836]
[1753281059570,0.17740542,118080.0,118070.0,0.20834836]
[1753281059903,0.16706005,118090.0,118080.0,0.25738232]
[1753281060122,0.34753629,118090.0,118080.0,0.18311545]
[1753281060342,0.34694044,118090.0,118080.0,0.00527]
[1753281060598,0.00846876,118080.0,118070.0,0.22251933]
[1753281060882,0.22531164,118080.0,118070.0,0.00827]
[1753281061074,0.25761164,118080.0,118070.0,0.00508]
[1753281061281,0.25761164,118080.0,118070.0,0.00208]
[1753281061500,0.22531164,118080.0,118070.0,0.19687896]
[1753281061712,0.23378018,118080.0,118070.0,0.19159984]
[1753281061922,0.23378018,118080.0,118070.0,0.20853814]
[1753281061923,0.06440349,118080.0,118070.0,0.20853814]
[1753281062147,0.06440349,118080.0,118070.0,0.18313051]
[1753281062148,0.23642669,118080.0,118070.0,0.18313051]
[1753281062345,0.23378018,118080.0,118070.0,0.18613051]
[1753281062577,0.23378018,118080.0,118070.0,0.1977991]
[1753281062708,0.19683282,118080.0,118070.0,0.20626822]
[1753281062917,0.17745613,118080.0,118070.0,0.20834822]
[1753281063164,0.34683282,118080.0,118070.0,0.2030691]
[1753281063378,0.34683282,118080.0,118070.0,0.19459991]
[1753281063579,0.40678005,118080.0,118070.0,0.20306924]
[1753281064082,0.40678005,118080.0,118070.0,0.00508]
[1753281064299,0.39831151,118080.0,118070.0,0.003]
[1753281064518,0.57831151,118080.0,118070.0,0.003]
[1753281064733,0.5941248,118080.0,118070.0,0.003]
[1753281065831,0.5973748,118080.0,118070.0,0.003]
[1753281066968,0.6818521,118080.0,118070.0,0.003]
[1753281067198,1.4106171,118080.0,118070.0,0.003]
[1753281067412,1.0544521,118080.0,118070.0,0.003]
[1753281067860,0.9341248,118080.0,118070.0,0.003]
[1753281068087,0.50212728,118080.0,118070.0,0.19459984]
[1753281068303,0.35312728,118080.0,118070.0,0.22489991]
[1753281068540,0.18375016,118080.0,118070.0,0.2388385]
[1753281068764,0.37006444,118080.0,118070.0,0.28070769]
[1753281068976,0.37006444,118080.0,118070.0,0.26376924]
[1753281069201,0.37006444,118080.0,118070.0,0.2722385]
[1753281069643,0.37006444,118080.0,118070.0,0.25529991]
[1753281069875,0.36159611,118080.0,118070.0,0.06897]
[1753281070096,0.41555124,118080.0,118070.0,0.03657]
[1753281070754,0.39126941,118080.0,118070.0,0.03657]
[1753281071862,0.33731428,118080.0,118070.0,0.03657]
[1753281073346,0.33731428,118080.0,118070.0,0.00627]
[1753281074413,0.33731428,118080.0,118070.0,0.2331691]
[1753281074645,0.33731428,118080.0,118070.0,0.23316917]
[1753281074853,0.33731428,118080.0,118070.0,0.03837]
[1753281075001,0.33731428,118080.0,118070.0,0.00627]
[1753281075951,0.33936428,118080.0,118070.0,0.00627]
[1753281076101,0.41535641,118080.0,118070.0,0.00627]
[1753281076554,0.41535641,118080.0,118070.0,0.00308]
[1753281076764,0.63140641,118080.0,118070.0,0.001]
[1753281076992,1.01264439,118080.0,118070.0,0.001]
[1753281078473,0.43119714,118080.0,118070.0,0.001]
[1753281078715,0.48936428,118080.0,118070.0,0.001]
[1753281078926,0.50520501,118080.0,118070.0,0.001]
[1753281079581,0.52196428,118080.0,118070.0,0.001]
[1753281079790,0.93796844,118080.0,118070.0,0.001]
[1753281081560,0.90321844,118080.0,118070.0,0.001]
[1753281081792,0.98769574,118080.0,118070.0,0.001]
[1753281082020,0.65684849,118080.0,118070.0,0.001]
[1753281082242,1.02224574,118080.0,118070.0,0.001]
[1753281082439,0.99094574,118080.0,118070.0,0.001]
[1753281082705,0.98769574,118080.0,118070.0,0.001]
[1753281082903,0.97183883,118080.0,118070.0,0.001]
[1753281083115,0.62230735,118080.0,118070.0,0.001]
[1753281083323,0.60644158,118080.0,118070.0,0.001]
[1753281084083,0.62230956,118080.0,118070.0,0.001]
[1753281084280,0.60644158,118080.0,118070.0,0.001]
[1753281084801,1.02095789,118080.0,118070.0,0.001]
[1753281085005,1.81083244,118080.0,118070.0,0.001]
[1753281085689,1.81083438,118080.0,118070.0,0.001]
[1753281085930,1.44543713,118080.0,118070.0,0.001]
[1753281086201,1.81083438,118080.0,118070.0,0.001]
[1753281086377,1.08003988,118080.0,118070.0,0.001]
[1753281086605,1.44543713,118080.0,118070.0,0.001]
[1753281087481,1.9782834,118080.0,118070.0,0.001]
[1753281088320,2.0282834,118080.0,118070.0,0.001]
[1753281088576,1.18944541,118060.0,118050.0,0.0004]
[1753281088827,1.72585726,118060.0,118050.0,0.0004]
[1753281089036,1.72909726,118060.0,118050.0,0.0004]
[1753281091073,1.72909726,118060.0,118050.0,0.0024]
[1753281091328,1.72909726,118060.0,118050.0,0.0004]
[1753281091563,1.72909726,118060.0,118050.0,0.0014]
[1753281091795,1.74654628,118060.0,118050.0,0.0014]
[1753281093874,1.38114903,118060.0,118050.0,0.0014]
[1753281094075,1.74654628,118060.0,118050.0,0.0014]
[1753281094343,1.74654628,118060.0,118050.0,0.0004]
[1753281095013,1.74754628,118060.0,118050.0,0.0004]
[1753281100184,1.74954628,118060.0,118050.0,0.0004]
[1753281100797,1.73209726,118060.0,118050.0,0.0004]
[1753281107299,1.36670001,118060.0,118050.0,0.0004]
[1753281107507,1.73209726,118060.0,118050.0,0.0004]
[1753281110051,1.36670001,118060.0,118050.0,0.0004]
[1753281110286,1.73209726,118060.0,118050.0,0.0004]
[1753281112114,1.73209726,118060.0,118050.0,1e-08]
[1753281112115,2.16494353,118060.0,118050.0,1e-08]
[1753281112331,2.18079502,118060.0,118050.0,1e-08]
[1753281114078,0.64753959,118050.0,118040.0,1e-08]
[1753281114284,1.56220541,118050.0,118040.0,1e-08]
[1753281114501,1.56544541,118050.0,118040.0,1e-08]
[1753281114954,1.56884041,118050.0,118040.0,1e-08]
[1753281115174,1.59486989,118050.0,118040.0,1e-08]
[1753281115410,1.59486989,118050.0,118040.0,0.00049104]
[1753281115852,0.84100565,118040.0,118030.0,0.0004]
[1753281116079,1.74280475,118040.0,118030.0,0.0004]
[1753281116286,1.74576475,118040.0,118030.0,0.0004]
[1753281117735,2.10321377,118040.0,118030.0,0.0004]
[1753281117973,2.11907413,118040.0,118030.0,0.0014]
[1753281118441,1.30380317,118040.0,118030.0,0.0004]
[1753281118679,2.00399767,118040.0,118030.0,0.0004]
[1753281118906,1.4366914,118040.0,118030.0,0.00553]
[1753281119125,1.2687802,118040.0,118030.0,0.03853]
[1753281119410,1.13463655,118040.0,118030.0,0.06853]
[1753281119647,1.51911385,118040.0,118030.0,0.06853]
[1753281119886,1.05338295,118040.0,118030.0,0.06853]
[1753281120126,0.47890565,118040.0,118030.0,0.06853]
[1753281120368,0.81890565,118040.0,118030.0,0.06853]
[1753281122286,0.001,118040.0,118030.0,0.63726435]
[1753281122744,0.003,118040.0,118030.0,0.63726435]
[1753281122975,0.003,118040.0,118030.0,0.72174165]
[1753281123194,0.001,118040.0,118030.0,0.72174165]
[1753281123629,0.00049034,118050.0,118030.0,0.72174165]
[1753281123630,0.00049034,118050.0,118040.0,0.25904833]
[1753281123862,0.00049034,118050.0,118040.0,0.71100288]
[1753281124129,0.00049034,118050.0,118040.0,0.71405288]
[1753281125271,0.00049034,118050.0,118040.0,0.71505288]
[1753281125487,0.40049034,118050.0,118040.0,1.08045013]
[1753281125724,0.00049034,118050.0,118040.0,1.08045013]
[1753281125943,0.00049034,118050.0,118040.0,0.71505288]
[1753281126798,0.00896075,118050.0,118040.0,0.71505288]
[1753281127050,0.00896075,118050.0,118040.0,0.34965563]
[1753281127263,0.06002105,118050.0,118040.0,0.71505288]
[1753281127477,0.07696194,118050.0,118040.0,0.7399468]
[1753281128369,0.02590192,118050.0,118040.0,0.7399468]
[1753281128577,0.19532165,118050.0,118040.0,0.38302082]
[1753281128785,0.18685096,118050.0,118040.0,0.38302082]
[1753281129004,0.01743123,118050.0,118040.0,0.38302082]
[1753281129229,0.20379242,118050.0,118040.0,0.27312949]
[1753281129442,0.28111226,118050.0,118040.0,0.29007282]
[1753281129658,0.27264142,118050.0,118040.0,0.29007282]
[1753281129885,0.28111211,118050.0,118040.0,0.30701536]
[1753281130103,0.28958295,118050.0,118040.0,0.30701543]
[1753281130341,0.27264177,118050.0,118040.0,0.30701543]
[1753281130555,0.00896068,118050.0,118040.0,0.30701543]
[1753281131053,0.01743116,118050.0,118040.0,0.67241268]
[1753281131266,0.02590178,118050.0,118040.0,0.67241268]
[1753281131493,0.02590178,118050.0,118040.0,0.30701543]
[1753281131678,0.02590178,118050.0,118040.0,0.67241268]
[1753281132146,0.27264105,118050.0,118040.0,0.29007282]
[1753281132370,0.24722896,118050.0,118040.0,0.63057615]
[1753281132585,0.24722896,118050.0,118040.0,0.64751876]
[1753281132799,0.25569973,118050.0,118040.0,0.2651789]
[1753281133006,0.25569973,118050.0,118040.0,0.27365024]
[1753281133218,0.25569973,118050.0,118040.0,0.28212151]
[1753281133432,0.27264155,118050.0,118040.0,0.26517861]
[1753281133648,0.27264155,118050.0,118040.0,0.27364995]
[1753281133890,0.07780923,118050.0,118040.0,0.27364995]
[1753281134378,0.2556998,118050.0,118040.0,0.26517861]
[1753281134585,0.2556998,118050.0,118040.0,0.2567072]
[1753281134847,0.2556998,118050.0,118040.0,0.26517861]
[1753281135106,0.2556998,118050.0,118040.0,0.26517868]
[1753281135401,0.2556998,118050.0,118040.0,0.25670727]
[1753281135630,0.2556998,118050.0,118040.0,0.26517868]
[1753281135847,0.24722896,118050.0,118040.0,0.26517861]
[1753281136060,0.25569973,118050.0,118040.0,0.27364988]
[1753281136282,0.26417064,118050.0,118040.0,0.26517861]
[1753281136539,0.00049034,118050.0,118040.0,0.63904706]
[1753281136993,0.00049034,118050.0,118040.0,0.72352436]
[1753281137232,0.00049034,118050.0,118040.0,1.10637063]
[1753281138115,0.00049034,118050.0,118040.0,0.37457613]
[1753281138339,0.00049034,118050.0,118040.0,1.10937063]
[1753281138978,0.00049034,118050.0,118040.0,1.11137063]
[1753281140912,0.00049034,118050.0,118040.0,0.36312711]
[1753281141179,0.00049034,118050.0,118040.0,0.72852436]
[1753281142727,0.00049034,118050.0,118040.0,1.09392161]
[1753281142893,0.00049034,118050.0,118040.0,0.72852436]
[1753281146054,0.00049034,118050.0,118040.0,0.36312711]
[1753281146281,0.00049034,118050.0,118040.0,0.72852436]
[1753281148111,0.00049034,118050.0,118040.0,0.36312711]
[1753281148335,0.00049034,118050.0,118040.0,0.72852436]
[1753281149860,0.00049034,118050.0,118040.0,0.36312711]
[1753281150058,0.00049034,118050.0,118040.0,0.72852436]
[1753281151051,0.00049034,118050.0,118040.0,0.74597338]
[1753281151268,0.00049034,118050.0,118040.0,1.11137063]
[1753281151682,1e-08,118050.0,118040.0,1.45137063]
[1753281151863,1e-08,118050.0,118040.0,1.50137063]
[1753281152073,0.00628966,118100.0,118090.0,0.19476583]
[1753281152324,0.56609372,118110.0,118100.0,0.19474933]
[1753281152462,0.24302658,118110.0,118100.0,0.19679933]
[1753281152658,0.55762754,118110.0,118100.0,0.19993933]
[1753281152917,0.68473235,118110.0,118100.0,0.19147251]
[1753281153134,0.76074397,118110.0,118100.0,0.17453801]
[1753281153336,0.75432758,118110.0,118100.0,0.18315272]
[1753281153496,0.66985028,118110.0,118100.0,0.18315272]
[1753281153698,0.6762666,118110.0,118100.0,0.20008701]
[1753281153904,0.68473278,118110.0,118100.0,0.18315272]
[1753281154119,0.69225323,118110.0,118100.0,0.00533731]
[1753281154314,0.76184796,118110.0,118100.0,0.00219731]
[1753281154756,1.12724521,118110.0,118100.0,0.00014731]
[1753281154929,1.19227521,118110.0,118100.0,0.00014731]
[1753281156336,1.34227521,118110.0,118100.0,0.00014731]
[1753281156536,1.42675251,118110.0,118100.0,0.00014731]
[1753281157351,1.41811701,118110.0,118100.0,0.00014731]
[1753281157808,1.06135526,118110.0,118100.0,0.00014731]
[1753281158673,0.97687796,118110.0,118100.0,0.00014731]
[1753281158885,0.82687796,118110.0,118100.0,0.00014731]
[1753281160556,0.82687796,118110.0,118100.0,0.17796264]
[1753281160775,0.74793698,118110.0,118100.0,0.194897]